bitfinex-derivatives/quotes_ETHF0:USTF0_20250309
["timestamp","ask_amount","ask_price","bid_price","bid_amount"]
[1741489683490,3.2078,2180.7,2180.0,0.7056]
[1741489683689,3.2078,2180.7,2180.3,0.55047]
[1741489683884,3.2078,2180.7,2180.0,0.7056]
[1741489684289,3.2078,2180.7,2180.3,0.55047]
[1741489684595,3.2078,2180.7,2180.5,0.55041]
[1741489684791,3.2078,2180.7,2180.0,0.7056]
[1741489684999,3.2078,2180.7,2180.1,0.55052]
[1741489685296,3.75819,2180.7,2180.0,1.25613]
[1741489685493,0.5504,2180.6,2180.0,1.25613]
[1741489685693,0.7115,2180.5,2180.1,0.55053]
[1741489685890,0.6705,2180.4,2180.1,0.55053]
[1741489686089,6.99901366,2180.4,2179.7,0.00688531]
[1741489686402,3.2078,2179.8,2179.7,0.00688531]
[1741489686696,5.2488,2179.8,2179.7,0.00688531]
[1741489686990,5.7994,2179.8,2179.7,0.00688531]
[1741489687294,12.36951366,2179.8,2178.4,3.2078]
[1741489687597,3.75854,2179.3,2178.6,21.14391]
[1741489687793,3.3756,2179.2,2178.7,0.55088]
[1741489687988,3.3756,2179.2,2178.6,21.14389]
[1741489688188,3.3756,2179.2,2178.6,20.94400183]
[1741489688389,3.3756,2179.2,2178.7,0.00688531]
[1741489688586,3.3756,2179.2,2178.8,0.55085]
[1741489688900,3.3756,2179.2,2178.7,0.00688531]
[1741489689092,3.3756,2179.2,2178.7,0.55776531]
[1741489689399,3.2078,2179.0,2178.7,0.00688531]
[1741489690405,3.2078,2179.3,2179.0,0.5508]
[1741489691400,3.2078,2179.3,2178.7,3.76555531]
[1741489691600,0.6836,2179.2,2178.7,3.76555531]
[1741489691800,0.6836,2179.2,2178.7,3.21468531]
[1741489692197,0.6836,2179.2,2178.8,0.55085]
[1741489692502,2.043,2179.4,2178.7,3.21468531]
[1741489692691,2.043,2179.4,2178.8,0.55085]
[1741489693001,2.043,2179.4,2178.7,3.76555531]
[1741489693199,2.043,2179.4,2178.7,3.21468531]
[1741489693397,2.043,2179.4,2178.8,0.55084]
[1741489693597,2.043,2179.4,2178.7,3.21468531]
[1741489693795,2.59372,2179.4,2178.7,3.76555531]
[1741489694298,3.2078,2179.3,2178.7,3.21468531]
[1741489694496,3.2078,2179.3,2178.8,3.2078]
[1741489694697,0.55077,2179.2,2178.8,3.2078]
[1741489694897,0.6914,2179.1,2178.8,3.2078]
[1741489696003,3.2078,2179.3,2178.8,3.75864]
[1741489696198,3.2078,2179.3,2178.9,0.55083]
[1741489696406,3.2078,2179.3,2178.8,3.2078]
[1741489696703,3.2078,2179.3,2178.9,0.6629]
[1741489697407,3.2078,2179.3,2178.9,1.21371]
[1741489697706,2.043,2179.4,2178.9,0.6629]
[1741489697907,2.043,2179.4,2179.0,1.23121]
[1741489698209,2.043,2179.4,2179.0,0.6804]
[1741489698399,0.6914,2179.5,2179.0,0.6804]
[1741489698605,2.7354,2179.5,2179.1,0.55077]
[1741489699205,2.7354,2179.5,2179.0,0.6804]
[1741489699601,3.2861,2179.5,2179.0,0.6804]
[1741489700007,2.7354,2179.5,2179.0,0.6804]
[1741489701310,3.28609,2179.5,2179.0,0.6804]
[1741489701499,2.7354,2179.5,2179.0,0.6804]
[1741489701698,3.28609,2179.5,2179.0,0.6804]
[1741489702105,2.7354,2179.5,2179.0,0.6804]
[1741489702310,2.7354,2179.5,2178.9,1.344]
[1741489702311,3.2078,2179.3,2178.9,0.6629]
[1741489702714,0.55077,2179.2,2178.8,3.2078]
[1741489702905,0.6477,2179.2,2178.8,3.2078]
[1741489703105,3.2078,2179.3,2178.8,3.2078]
[1741489703303,3.2078,2179.3,2178.8,3.75864]
[1741489703507,0.55076,2179.2,2178.8,3.2078]
[1741489703708,0.55078,2179.1,2178.8,3.2078]
[1741489704012,1.18008,2179.1,2178.8,3.2078]
[1741489704410,3.22008,2179.1,2178.8,3.2078]
[1741489705008,2.6693,2179.1,2178.8,3.2078]
[1741489705213,2.6693,2179.1,2178.9,0.55082]
[1741489705713,2.6693,2179.1,2178.8,3.2078]
[1741489707002,5.2448,2179.3,2178.8,3.2078]
[1741489707206,0.55076,2179.2,2178.8,3.2078]
[1741489708014,5.2448,2179.3,2178.9,0.55082]
[1741489708217,5.2448,2179.3,2178.9,1.8385]
[1741489708509,2.037,2179.3,2178.9,1.8385]
[1741489708714,0.6354,2179.4,2179.0,0.5508]
[1741489708910,0.6914,2179.5,2179.0,0.5508]
[1741489709616,0.6914,2179.5,2179.1,0.55077]
[1741489709811,1.24209,2179.5,2179.0,0.55079]
[1741489711019,0.6914,2179.5,2179.0,0.55079]
[1741489711319,0.6914,2179.5,2179.1,0.55076]
[1741489711518,0.6914,2179.5,2178.9,1.8385]
[1741489711821,1.2421,2179.5,2178.9,1.8385]
[1741489712419,1.2421,2179.5,2178.9,2.38932]
[1741489712609,0.6914,2179.5,2178.9,1.8385]
[1741489712919,0.55071,2179.4,2178.9,2.38931]
[1741489713119,1.24209,2179.5,2179.0,0.5508]
[1741489713321,0.6914,2179.5,2178.9,1.8385]
[1741489713521,1.2421,2179.5,2178.9,2.38931]
[1741489714023,1.2421,2179.5,2179.0,0.55081]
[1741489714614,0.6914,2179.5,2179.0,0.55081]
[1741489714813,1.24209,2179.5,2179.0,0.55081]
[1741489715917,0.6914,2179.5,2179.0,0.55081]
[1741489716214,0.6914,2179.5,2179.1,0.55078]
[1741489716611,0.6914,2179.5,2178.9,1.8385]
[1741489716817,5.2498,2179.6,2178.9,3.21555]
[1741489717012,3.2078,2179.1,2178.7,0.00688531]
[1741489717225,3.2078,2178.8,2178.7,0.00688531]
[1741489717414,3.75866,2178.8,2178.7,0.00688531]
[1741489717822,3.2078,2178.8,2178.7,0.00688531]
[1741489718019,3.75866,2178.8,2178.7,0.00688531]
[1741489718220,3.2078,2178.8,2178.7,0.00688531]
[1741489721020,3.75866,2178.8,2178.7,0.00688531]
[1741489721219,3.2078,2178.8,2178.7,0.00688531]
[1741489722718,3.75866,2178.8,2178.7,0.00688531]
[1741489723218,3.2078,2178.8,2178.7,0.00688531]
[1741489727221,3.3,2179.0,2178.7,0.00688531]
[1741489727826,3.3,2179.0,2178.7,0.62548531]
[1741489728028,3.85083,2179.0,2178.7,0.62548531]
[1741489728232,0.55083,2178.9,2178.7,0.62548531]
[1741489728434,0.55086,2178.8,2178.7,0.00688531]
[1741489729033,1.15076,2178.8,2178.7,0.00688531]
[1741489729730,8.27147366,2178.8,2178.7,0.00688531]
[1741489729925,7.72061366,2178.8,2178.2,3.2078]
[1741489730123,7.72061366,2178.8,2178.1,0.95885943]
[1741489730124,3.2078,2178.6,2178.1,0.95885943]
[1741489730339,2.6958,2178.5,2178.1,0.95885943]
[1741489730536,2.6958,2178.5,2178.3,0.55098]
[1741489730829,2.6958,2178.5,2178.3,0.55097]
[1741489731534,2.6958,2178.5,2178.2,0.55788531]
[1741489731726,2.6958,2178.5,2178.2,0.00688531]
[1741489731927,2.6958,2178.5,2178.3,0.55098]
[1741489732533,2.6958,2178.5,2178.2,0.55787531]
[1741489733627,2.6958,2178.5,2178.2,0.00688531]
[1741489734736,3.24673,2178.5,2178.2,0.00688531]
[1741489735737,2.6958,2178.5,2178.2,0.00688531]
[1741489735928,0.55096,2178.4,2178.2,0.00688531]
[1741489736730,3.24673,2178.5,2178.2,0.00688531]
[1741489736931,3.2078,2178.3,2178.2,0.00688531]
[1741489742840,3.2078,2178.3,2177.8,20.95061774]
[1741489743039,0.55104,2178.1,2177.8,20.95061774]
[1741489743345,0.6011,2178.0,2177.8,20.602]
[1741489743545,3.8089,2178.0,2177.8,20.602]
[1741489743743,4.35997,2178.0,2177.8,20.602]
[1741489743940,3.8089,2178.0,2177.7,0.00688531]
[1741489744139,0.5511,2177.9,2177.7,0.00688531]
[1741489744539,0.6022,2177.8,2177.7,0.00688531]
[1741489746849,3.8089,2178.0,2177.7,0.00688531]
[1741489747046,3.8089,2178.0,2177.8,0.55111]
[1741489747740,3.8089,2178.0,2177.7,0.00688531]
[1741489747947,3.8089,2178.0,2177.7,0.55800531]
[1741489748136,3.8089,2178.0,2177.7,0.00688531]
[1741489748341,2.043,2178.3,2177.7,0.00688531]
[1741489749046,2.043,2178.3,2177.9,0.55106]
[1741489749249,2.043,2178.3,2178.0,1.2435]
[1741489751440,0.55101,2178.2,2178.0,1.2435]
[1741489751640,2.043,2178.3,2178.0,0.6061]
[1741489751847,3.2078,2178.2,2177.7,0.55800531]
[1741489752047,3.2078,2178.2,2177.7,0.61298531]
[1741489752243,3.75881,2178.2,2177.7,1.16410531]
[1741489752443,3.2078,2178.2,2177.7,0.61298531]
[1741489752645,3.2078,2178.2,2177.8,3.2078]
[1741489752853,2.043,2178.3,2178.1,0.55103]
[1741489753146,2.043,2178.3,2177.8,3.2078]
[1741489753345,2.043,2178.3,2178.0,0.55104]
[1741489753741,4.4164,2178.5,2177.8,3.2078]
[1741489753945,4.4164,2178.5,2178.1,3.2078]
[1741489754140,1.2086,2178.5,2178.3,0.55097]
[1741489754536,1.2086,2178.5,2178.2,1.8843]
[1741489754742,1.2086,2178.5,2178.3,0.55097]
[1741489755145,1.2086,2178.5,2178.2,2.43529]
[1741489756939,1.2086,2178.5,2178.2,1.8843]
[1741489757150,4.96734,2178.5,2178.1,3.2078]
[1741489757352,4.4164,2178.5,2178.1,3.75883]
[1741489758239,4.4164,2178.5,2178.1,3.2078]
[1741489758445,4.4164,2178.5,2178.2,0.55101]
[1741489758649,4.4164,2178.5,2178.1,3.2078]
[1741489758846,4.4164,2178.5,2178.3,0.55097]
[1741489759244,4.4164,2178.5,2178.3,0.6339]
[1741489759455,4.4164,2178.5,2178.3,1.18487]
[1741489759751,4.4164,2178.5,2178.3,1.18488]
[1741489761645,0.00688531,2178.6,2178.3,0.6339]
[1741489761848,0.00688531,2178.6,2178.5,0.55093]
[1741489762455,0.00688531,2178.6,2178.3,0.6339]
[1741489762643,0.00688531,2178.6,2178.5,0.55093]
[1741489763550,0.00688531,2178.6,2178.5,3.75873]
[1741489763952,0.00688531,2178.6,2178.5,0.55093]
[1741489766056,0.00688531,2178.6,2178.3,1.18486]
[1741489766253,0.00688531,2178.6,2178.3,0.6339]
[1741489766451,0.61378531,2178.6,2178.3,0.6339]
[1741489766650,1.25298531,2178.6,2178.3,0.6339]
[1741489766852,1.80389531,2178.6,2178.1,3.2078]
[1741489767052,3.2078,2178.5,2178.1,3.2078]
[1741489767452,3.2078,2178.5,2178.1,3.75883]
[1741489767654,3.2078,2178.5,2178.1,3.2078]
[1741489767862,3.2078,2178.5,2178.2,0.55099]
[1741489768659,3.2078,2178.5,2178.1,3.2078]
[1741489768859,3.75874,2178.5,2178.1,3.75882]
[1741489769560,3.2078,2178.5,2178.1,3.75882]
[1741489769752,3.2078,2178.5,2178.2,0.551]
[1741489769948,3.2078,2178.5,2178.1,3.2078]
[1741489770158,2.58397,2178.4,2178.1,3.2078]
[1741489770354,0.55098,2178.3,2178.1,3.2078]
[1741489770554,0.6551,2178.3,2178.2,0.55101]
[1741489771857,0.6551,2178.3,2178.1,3.75882]
[1741489772662,0.6551,2178.3,2178.2,0.55101]
[1741489773253,0.6551,2178.3,2178.1,3.75882]
[1741489773657,0.6551,2178.3,2178.1,3.2078]
[1741489773855,2.033,2178.4,2178.1,3.75881]
[1741489774065,2.033,2178.4,2178.2,1.8735]
[1741489775458,0.00688531,2178.6,2178.2,1.8735]
[1741489775857,0.00688531,2178.6,2178.2,2.42449]
[1741489776064,0.00688531,2178.6,2178.2,1.8735]
[1741489776367,0.55779531,2178.6,2178.2,1.8735]
[1741489777256,0.00688531,2178.6,2178.2,1.8735]
[1741489777456,0.00688531,2178.6,2178.4,0.55095]
[1741489777762,0.00688531,2178.6,2178.2,2.42449]
[1741489778164,0.00688531,2178.6,2178.2,1.8735]
[1741489778361,0.00688531,2178.6,2178.3,0.55096]
[1741489778667,0.00688531,2178.6,2178.2,1.8735]
[1741489778861,0.00688531,2178.6,2178.4,0.55094]
[1741489779066,0.00688531,2178.6,2178.3,0.55098]
[1741489779264,0.00688531,2178.6,2178.5,0.55093]
[1741489781764,0.00688531,2178.6,2178.5,4.55093]
[1741489782163,3.3048,2179.2,2179.1,0.55078]
[1741489782164,1.2718,2179.2,2179.1,0.55078]
[1741489782363,3.2078,2179.4,2179.1,0.55076]
[1741489782562,3.2078,2179.4,2179.2,0.55074]
[1741489782762,3.2078,2179.4,2179.0,0.5508]
[1741489783064,0.5933,2179.3,2178.9,1.2328]
[1741489783263,0.60018531,2179.3,2179.1,0.55077]
[1741489783464,0.60018531,2179.3,2179.0,1.18969]
[1741489783666,0.60018531,2179.3,2179.0,0.6389]
[1741489783970,0.6089,2179.2,2179.0,1.18969]
[1741489784767,0.6089,2179.2,2179.0,0.6389]
[1741489784965,0.6089,2179.2,2179.1,0.55078]
[1741489785174,0.6089,2179.2,2179.0,0.6389]
[1741489785671,0.6089,2179.2,2179.0,1.1897]
[1741489786260,0.6089,2179.2,2179.0,0.6389]
[1741489786465,0.6089,2179.2,2179.0,0.5508]
[1741489786762,0.6089,2179.2,2178.9,1.15571531]
[1741489786963,1.2083,2179.2,2178.9,1.15571531]
[1741489787168,1.2083,2179.2,2178.9,0.60488531]
[1741489787666,3.2403,2179.2,2178.9,0.00688531]
[1741489787864,0.55081,2179.0,2178.9,0.00688531]
[1741489788764,3.12071366,2179.1,2178.9,0.00688531]
[1741489789063,5.15271366,2179.1,2179.0,0.55081]
[1741489791271,3.12071366,2179.1,2178.9,0.55769531]
[1741489791871,3.12071366,2179.1,2178.9,0.00688531]
[1741489792071,3.12071366,2179.1,2179.0,0.6126]
[1741489793574,3.12071366,2179.1,2178.9,0.00688531]
[1741489793771,3.67151366,2179.1,2178.9,0.00688531]
[1741489793972,3.12071366,2179.1,2178.9,0.00688531]
[1741489794373,3.12071366,2179.1,2178.9,0.55770531]
[1741489794568,0.6068,2179.2,2178.9,0.55770531]
[1741489794569,0.6068,2179.2,2178.9,1.17030531]
[1741489795474,0.60018531,2179.3,2178.9,0.61948531]
[1741489795974,0.60018531,2179.3,2179.1,0.55076]
[1741489796880,0.60018531,2179.3,2178.9,1.17029531]
[1741489797081,0.60018531,2179.3,2179.1,0.55078]
[1741489798778,0.00688531,2179.3,2179.2,0.55075]
[1741489800685,0.00688531,2179.3,2179.1,0.55076]
[1741489800886,0.00688531,2179.3,2179.2,0.55075]
[1741489802287,1.2898,2179.5,2179.1,3.2078]
[1741489802477,1.2898,2179.5,2179.4,0.5507]
[1741489802478,0.35103817,2179.5,2179.4,0.5507]
[1741489804183,0.00688531,2179.7,2179.4,3.2078]
[1741489804381,0.00688531,2179.7,2179.6,0.55065]
[1741489805276,0.00688531,2179.7,2179.4,3.2078]
[1741489805682,0.00688531,2179.7,2179.4,3.7585]
[1741489805880,0.00688531,2179.7,2179.4,3.2078]
[1741489806082,0.00688531,2179.7,2179.6,0.55065]
[1741489807586,0.00688531,2179.7,2179.4,3.2078]
[1741489807982,0.00688531,2179.7,2179.5,0.55068]
[1741489808178,0.00688531,2179.7,2179.4,3.75848]
[1741489808490,0.00688531,2179.7,2179.4,3.2078]
[1741489808688,0.00688531,2179.7,2179.6,0.55065]
[1741489808886,2.6887,2180.1,2179.6,0.55065]
[1741489808887,0.6547,2180.1,2180.0,0.55055]
[1741489809776,3.2078,2180.3,2180.0,0.55055]
[1741489809981,3.8449,2180.3,2180.0,0.55055]
[1741489810190,0.63278531,2180.4,2180.1,3.2078]
[1741489810390,0.63278531,2180.4,2180.2,1.82389]
[1741489810787,0.63278531,2180.4,2180.1,3.2078]
[1741489810987,0.6461,2180.3,2180.1,3.2078]
[1741489811386,0.63278531,2180.4,2180.1,3.2078]
[1741489811784,0.63278531,2180.4,2180.1,3.75832]
[1741489811986,0.63278531,2180.4,2180.0,0.00688531]
[1741489812285,0.63278531,2180.4,2180.2,0.55049]
[1741489812485,0.63278531,2180.4,2180.3,0.55048]
[1741489812793,0.63278531,2180.4,2180.2,0.55049]
[1741489812988,0.63278531,2180.4,2180.1,0.6154]
[1741489813186,0.63278531,2180.4,2180.3,0.55048]
[1741489813587,0.00688531,2180.4,2180.1,0.6154]
[1741489813982,0.00688531,2180.4,2180.1,1.16592]
[1741489814186,0.00688531,2180.4,2180.2,0.55049]
[1741489814590,0.00688531,2180.4,2180.1,0.6154]
[1741489814591,0.00688531,2180.4,2180.1,1.16591]
[1741489815188,0.00688531,2180.4,2180.1,0.6154]
[1741489815589,0.00688531,2180.4,2180.3,0.55048]
[1741489815892,0.00688531,2180.4,2180.2,0.6179]
[1741489816289,0.00688531,2180.4,2180.2,1.1684]
[1741489816491,0.00688531,2180.4,2180.1,0.6154]
[1741489817386,0.00688531,2180.4,2180.2,0.55049]
[1741489817593,0.00688531,2180.4,2180.1,0.6154]
[1741489817783,0.00688531,2180.4,2180.2,0.5505]
[1741489818598,0.00688531,2180.4,2180.1,1.16591]
[1741489819100,0.00688531,2180.4,2180.2,0.5505]
[1741489819899,0.00688531,2180.4,2180.3,0.55048]
[1741489820598,0.00688531,2180.4,2180.3,3.75828]
[1741489820803,0.00688531,2180.4,2180.3,9.79728]
[1741489820997,3.2078,2181.0,2180.7,0.55036]
[1741489821301,3.2078,2181.0,2180.9,0.55033]
[1741489821503,2.038,2181.2,2180.8,1.15244]
[1741489821803,2.038,2181.2,2180.9,0.55032]
[1741489822099,2.04488531,2181.2,2180.8,1.15245]
[1741489822396,0.00688531,2181.2,2180.8,0.6021]
[1741489822599,0.00688531,2181.2,2181.0,0.55029]
[1741489822800,0.00688531,2181.2,2180.9,0.6006]
[1741489823497,0.00688531,2181.2,2180.9,1.15091]
[1741489823698,0.00688531,2181.2,2180.9,0.6006]
[1741489823893,0.55714531,2181.2,2180.8,0.94443677]
[1741489824202,0.00688531,2181.2,2180.8,0.94443677]
[1741489824901,0.00688531,2181.2,2180.8,1.49478677]
[1741489825106,0.00688531,2181.2,2180.8,0.94443677]
[1741489825400,0.00688531,2181.2,2180.8,1.49478677]
[1741489825799,0.00688531,2181.2,2180.9,0.55032]
[1741489825997,0.00688531,2181.2,2180.8,1.49477677]
[1741489826196,0.00688531,2181.2,2180.9,0.55032]
[1741489826396,0.00688531,2181.2,2180.8,1.49476677]
[1741489826597,0.00688531,2181.2,2180.8,1.49477677]
[1741489827098,0.00688531,2181.2,2181.0,0.5503]
[1741489827500,0.00688531,2181.2,2180.8,0.94443677]
[1741489827904,0.00688531,2181.2,2181.1,0.55028]
[1741489828907,3.2078,2181.6,2181.0,3.2078]
[1741489829198,3.2078,2181.6,2181.4,0.55019]
[1741489829406,3.2078,2181.6,2181.5,1.17687]
[1741489834105,0.00444439,2181.8,2181.6,0.55013]
[1741489834404,0.00444439,2181.8,2181.6,0.6099]
[1741489835109,0.64184439,2181.8,2181.5,0.6267]
[1741489835500,0.64184439,2181.8,2181.6,0.55014]
[1741489835697,0.00444439,2181.8,2181.6,0.55013]
[1741489835903,0.00444439,2181.8,2181.7,0.6281]
[1741489836406,0.00444439,2181.8,2181.5,0.6267]
[1741489837910,0.55455439,2181.8,2181.5,0.6267]
[1741489838105,0.00444439,2181.8,2181.5,0.6267]
[1741489838311,0.6106,2181.7,2181.5,0.6267]
[1741489839105,0.6106,2181.7,2181.5,1.17687]
[1741489841900,0.6106,2181.7,2181.5,0.6267]
[1741489842104,0.6106,2181.7,2181.5,1.17687]
[1741489842706,0.6106,2181.7,2181.5,0.6267]
[1741489843310,1.2116,2181.7,2181.5,0.6267]
[1741489845418,3.2078,2181.6,2181.3,0.63498531]
[1741489845613,3.2078,2181.6,2181.3,1.18520531]
[1741489846717,0.55019,2181.5,2181.3,0.00688531]
[1741489846922,0.5502,2181.4,2181.3,0.00688531]
[1741489847515,2.5812,2181.4,2181.3,0.00688531]
[1741489847711,0.55029,2181.1,2180.8,0.34233677]
[1741489847923,1.76771,2181.0,2180.7,0.97218598]
[1741489848517,0.55035,2180.8,2180.7,0.33578598]
[1741489848822,0.55038,2180.7,2180.6,0.00688531]
[1741489849020,1.15838,2180.7,2180.6,0.00688531]
[1741489856124,3.12071366,2180.8,2180.6,0.00688531]
[1741489856325,5.14871366,2180.8,2180.6,0.00688531]
[1741489857228,0.55038,2180.7,2180.6,0.00688531]
[1741489859428,5.69907366,2180.8,2180.6,0.00688531]
[1741489859731,5.69906366,2180.8,2180.6,0.00688531]
[1741489859932,2.57835,2180.8,2180.6,0.00688531]
[1741489861235,2.028,2180.8,2180.6,0.00688531]
[1741489861434,3.2078,2180.9,2180.6,0.00688531]
[1741489861636,3.2078,2180.9,2180.6,0.59958531]
[1741489861844,3.2078,2180.9,2180.8,0.55035]
[1741489862330,2.026,2181.2,2180.6,0.59958531]
[1741489862836,2.026,2181.2,2180.9,0.55031]
[1741489863131,2.026,2181.2,2181.0,1.2843]
[1741489864139,4.4335,2181.4,2181.0,1.2843]
[1741489864343,6.4585,2181.4,2181.0,1.8346]
[1741489864734,6.4585,2181.4,2181.0,1.2843]
[1741489865029,6.4585,2181.4,2181.0,1.8346]
[1741489865643,5.8298,2181.4,2181.0,1.8346]
[1741489866450,3.12071366,2181.6,2181.0,1.2843]
[1741489866749,2.024,2181.6,2181.3,0.55022]
[1741489866944,2.024,2181.6,2181.4,0.6463]
[1741489867137,2.57416,2181.6,2181.1,0.6361]
[1741489867342,0.6483,2181.5,2181.2,1.19655]
[1741489867642,0.6483,2181.5,2181.2,0.6463]
[1741489868547,0.6483,2181.5,2181.2,1.19655]
[1741489869350,0.6483,2181.5,2181.2,0.6463]
[1741489870450,0.6483,2181.5,2181.2,1.19655]
[1741489870649,0.6483,2181.5,2181.2,0.6463]
[1741489871452,0.6483,2181.5,2181.2,1.19655]
[1741489871652,0.6483,2181.5,2181.2,0.6463]
[1741489871949,0.6483,2181.5,2181.2,1.19653]
[1741489874755,0.6483,2181.5,2181.2,0.6463]
[1741489874956,0.6483,2181.5,2181.0,0.6451]
[1741489875149,1.83798,2181.5,2181.0,1.1954]
[1741489875643,1.2878,2181.5,2181.1,0.55027]
[1741489875848,3.75802,2181.4,2181.0,0.6451]
[1741489876856,0.55025,2181.2,2180.8,0.55033]
[1741489877047,1.2529,2181.1,2180.9,0.55032]
[1741489877650,1.2529,2181.1,2181.0,0.5503]
[1741489877851,3.72781366,2181.3,2181.1,0.55027]
[1741489878746,3.12071366,2181.3,2180.7,3.24552]
[1741489878949,3.12071366,2181.3,2181.1,0.55026]
[1741489879149,3.12071366,2181.3,2181.2,1.17855]
[1741489879759,3.12071366,2181.3,2181.2,0.6283]
[1741489880855,0.6458,2181.4,2181.2,1.17855]
[1741489881053,2.014,2181.5,2181.2,0.6283]
[1741489881259,0.6517,2181.6,2181.2,1.282]
[1741489881555,0.6517,2181.6,2181.3,0.55021]
[1741489882660,0.6517,2181.6,2181.3,3.75801]
[1741489882855,0.6517,2181.6,2181.4,0.5502]
[1741489883356,0.6517,2181.6,2181.3,4.12681778]
[1741489883960,3.2078,2181.7,2181.6,0.55015]
[1741489884158,3.2078,2181.7,2181.3,3.57659778]
[1741489884356,3.2078,2181.7,2181.3,4.12680778]
[1741489884659,3.2078,2181.7,2181.3,3.57659778]
[1741489884863,3.2078,2181.7,2181.6,0.55015]
[1741489885655,3.2078,2181.7,2181.3,5.58959778]
[1741489885955,3.2078,2181.7,2181.4,0.55018]
[1741489886161,3.8011,2181.7,2181.5,0.55016]
[1741489886363,3.8011,2181.7,2181.6,0.55015]
[1741489886558,3.2078,2181.7,2181.6,0.55015]
[1741489887057,3.2078,2181.7,2181.3,5.2208]
[1741489887460,0.6218,2181.6,2181.3,5.77101]
[1741489887762,0.6218,2181.6,2181.3,5.2208]
[1741489888156,3.2078,2181.7,2181.3,5.2208]
[1741489888356,3.8296,2181.7,2181.3,5.2208]
[1741489888755,3.8296,2181.7,2181.3,5.77101]
[1741489889061,3.8296,2181.7,2181.3,3.75801]
[1741489889558,4.37974,2181.7,2181.3,3.2078]
[1741489889763,3.8296,2181.7,2181.3,3.75801]
[1741489890358,4.37973,2181.7,2181.3,3.75801]
[1741489890558,3.8296,2181.7,2181.3,3.75801]
[1741489890758,4.37974,2181.7,2181.3,3.75801]
[1741489890961,4.37975,2181.7,2181.3,3.2078]
[1741489891161,4.37975,2181.7,2181.3,3.75802]
[1741489891665,8.96231366,2181.7,2181.2,1.17855]
[1741489891864,0.55017,2181.6,2181.2,1.17855]
[1741489892066,0.55015,2181.6,2181.2,1.17855]
[1741489892368,0.55015,2181.6,2181.2,1.17853]
[1741489892768,3.2078,2181.4,2180.9,1.842]
[1741489893062,1.2015,2181.3,2180.9,1.842]
[1741489893260,1.8571,2181.3,2181.0,0.55029]
[1741489894552,1.8571,2181.3,2181.0,0.55028]
[1741489894760,3.8681,2181.3,2181.0,0.55028]
[1741489895467,3.8681,2181.3,2180.9,1.208]
[1741489895766,3.8681,2181.3,2180.9,1.75831]
[1741489896165,4.41833,2181.3,2180.9,1.75831]
[1741489896362,4.41833,2181.3,2180.9,1.208]
[1741489896563,4.41833,2181.3,2180.9,4.4158]
[1741489897766,0.55025,2181.2,2180.9,4.4158]
[1741489897967,0.55025,2181.2,2180.9,3.8153]
[1741489898273,3.8681,2181.3,2180.9,3.8153]
[1741489898468,0.55025,2181.2,2180.9,3.8153]
[1741489898672,3.8681,2181.3,2180.9,3.8153]
[1741489898865,4.41834,2181.3,2180.9,3.8153]
[1741489899265,4.41834,2181.3,2180.9,4.36562]
[1741489899465,3.8681,2181.3,2181.0,0.55029]
[1741489899672,3.8681,2181.3,2180.9,4.36561]
[1741489900074,4.41833,2181.3,2180.9,4.36561]
[1741489900270,4.41833,2181.3,2180.9,3.8153]
[1741489900471,4.41833,2181.3,2180.9,4.36562]
[1741489901572,3.8681,2181.3,2180.9,4.36562]
[1741489902570,4.41834,2181.3,2180.9,3.8153]
[1741489902771,0.55027,2181.2,2180.7,1.15897]
[1741489903075,0.55027,2181.2,2180.7,1.75887]
[1741489903278,0.55027,2181.2,2180.8,0.55035]
[1741489903773,3.2078,2181.1,2180.7,0.5999]
[1741489903976,0.55032,2181.0,2180.7,0.5999]
[1741489904173,0.6043,2180.9,2180.7,0.5999]
[1741489904374,1.75353,2180.9,2180.7,0.5999]
[1741489904574,1.2032,2180.9,2180.7,0.5999]
[1741489905075,1.2032,2180.9,2180.7,1.15027]
[1741489905479,1.2032,2180.9,2180.7,0.5999]
[1741489905978,1.2032,2180.9,2180.7,1.15027]
[1741489906878,3.2078,2181.1,2180.8,0.55035]
[1741489907081,3.2078,2181.1,2180.8,1.18245]
[1741489907475,3.2078,2181.1,2180.8,0.6321]
[1741489907676,3.2078,2181.1,2180.8,1.2438]
[1741489907875,3.2078,2181.1,2180.9,0.55032]
[1741489908676,3.2112,2181.2,2180.8,1.2438]
[1741489908875,3.2112,2181.2,2180.9,0.55032]
[1741489910078,3.2112,2181.2,2180.9,0.55031]
[1741489910784,3.2112,2181.2,2180.8,1.79414]
[1741489910983,3.76145,2181.2,2180.8,1.79414]
[1741489911186,3.76145,2181.2,2180.8,1.18244]
[1741489911880,3.2112,2181.2,2180.8,1.18244]
[1741489912287,3.2112,2181.2,2180.8,0.6321]
[1741489912587,0.55031,2181.0,2180.6,0.55727531]
[1741489912779,3.2078,2181.1,2180.7,0.55037]
[1741489913178,3.75808,2181.1,2180.7,0.55037]
[1741489913383,0.5503,2181.0,2180.6,0.55727531]
[1741489913586,3.75809,2181.1,2180.6,0.55727531]
[1741489913788,0.5503,2181.0,2180.6,0.55727531]
[1741489914286,3.2078,2181.1,2180.6,0.00688531]
[1741489914483,0.55038,2180.7,2180.6,0.00688531]
[1741489914682,3.67109366,2180.7,2180.6,0.00688531]
[1741489914882,5.55779366,2180.7,2180.6,0.00688531]
[1741489915683,0.55048,2180.3,2180.1,1.274]
[1741489915882,0.6489,2180.2,2180.1,1.274]
[1741489916089,0.6489,2180.2,2180.0,3.2078]
[1741489916389,4.4974,2180.2,2179.9,0.34389652]
[1741489916574,5.12,2180.2,2179.8,1.20928531]
[1741489916780,5.67051,2180.2,2179.8,1.20928531]
[1741489917386,5.12,2180.2,2179.8,0.65868531]
[1741489917689,0.55056,2180.0,2179.8,0.00688531]
[1741489917889,0.55055,2180.0,2179.8,0.00688531]
[1741489918487,3.75838,2179.9,2179.8,0.00688531]